[Event "EU-ch 12th"]
[Site "Aix les Bains"]
[Date "2011.04.01"]
[Round "10"]
[White "Smirnov, Artem"]
[Black "Popov, Valerij"]
[Result "0-1"]
[ECO "E04"]
[WhiteElo "2425"]
[BlackElo "2565"]
[Annotator "Marchand,A/Primel,D"]
[PlyCount "54"]
[EventDate "2011.03.22"]
[EventType "swiss"]
[EventRounds "11"]
[EventCountry "FRA"]
[SourceTitle "CBM 142 Extra"]
[Source "ChessBase"]
[SourceDate "2011.06.27"]
[SourceVersion "1"]
[SourceVersionDate "2011.06.27"]
[SourceQuality "1"]
[TimeControl "40/5400+30:1800+30"]

1. c4 e6 2. Nf3 d5 3. d4 Nf6 4. g3 dxc4 5. Bg2 a6 {[%cal Gb8c6,Gb7b5]} (5...
Nc6 6. Qa4 (6. O-O a6 {Souvent une simple transposition avec la partie et la
théorie considère que la variante 6.OO est trop risquée pour les Blancs. En
jouant a6 avant Nc6, les Noirs évitent la variante Qa4}) 6... Bb4+ 7. Bd2 Nd5
8. Qb5 $13) (5... b5 6. a4 c6 7. O-O) 6. O-O (6. a4 {[%csl Gb5] L'alternative
qui empêche la poussée b5 mais en créant un trou en b4 et au prix d'un tempo
important.} Nc6 {[%csl Rb4]} 7. O-O Rb8 8. a5 Bb4 $132 {[%csl Ra5]}) (6. Ne5
Bb4+ (6... c5 7. Be3 Nd5) 7. Nc3 Nd5 8. O-O (8. Bd2 b5) 8... Nxc3 9. bxc3 Bxc3
10. Rb1 Qxd4 {La variante а la mode} 11. Qa4+ b5 12. Qa3 Qxe5 13. Bf4 $13 {
Avrukh,B (2596)-Naiditsch,A (2712) CRO-chT1A 21st 2012 (1.11) 0-1}) 6... Nc6 (
6... b5 7. Ne5 Nd5 8. a4 (8. b3 cxb3 9. Qxb3 Be7 (9... f6 10. Nc3 Bb7 11. Nd3)
10. Rd1 (10. Nc3 {Karner,H (2390)-Machulsky,A Tallinn2 1985 0-1}) 10... O-O 11.
Nc3 Bb7 12. Bf4 (12. e4) 12... f6 13. Nd3 $44) (8. Nc3 Bb7 9. Nxd5 exd5 10. b3
(10. e4) 10... f6 (10... c3 11. e4 dxe4 12. Qh5 g6 13. Nxg6 $40 {Vainerman,I 
(2200)-Novikov,I (2490) UKR-ch Kiev 1986 (3) 0-1}) 11. e4 $1 {[%csl Re8][%cal
Gd1h5]} g6 12. exd5 $44 {Gulko,B (2490)-Novikov,I (2280) URS-ch sf Volgodonsk
1983 0-1}) 8... Bb7 9. b3 $44 {Primel,D (2082)-Donchenko,A (2460) Nantes op
4th 2005 (2) 1/2}) 7. Nc3 (7. e3 {[%cal Gd1e2] La grande ligne} Bd7 8. Qe2 (8.
Nc3 Nd5 9. Nd2 (9. Qe2 Bb4 $132)) (8. Nbd2 $6 b5 9. e4 (9. Ne5 Nd5 10. e4) 9...
Be7 10. d5 exd5 11. exd5 Nb4 $15) 8... b5 9. Rd1 (9. b3) (9. Ne5 Nd5 10. Nxd7
Qxd7 11. Rd1 Rd8 (11... Be7 12. b3 $44 {Spassov}) 12. b3 c3 {Toshkov,T-Spassov,
L Albena 1985} (12... cxb3 13. axb3 Ncb4 14. e4 Nf6 $13))) (7. a4 Rb8 8. a5 Bb4
9. Qc2 (9. Qa4) 9... Nxa5 (9... O-O 10. Qxc4 Qd5 (10... Qe7 {[%cal Ge7b4,Ge6e5]
}) 11. Qd3 (11. Nbd2 Bxa5 12. e4) 11... Nxa5 (11... Bxa5 12. Ng5 Qxd4 13. Bxc6
{[%csl Ra5]} Qxd3 14. exd3 Bb6 15. Bg2) (11... e5 12. Nc3) 12. Bf4 $44 {
[%csl Rc7,Ge5][%cal Gb1c3]}) 10. Qa4+ Nc6 11. Ne5 Nd5 12. Nxc6 bxc6 13. Qxc6+
Bd7 14. Qxc4 O-O 15. Rd1 c5 16. e4 Nb6 17. Qb3 Qe7 18. Bf4 Ra8 19. d5 c4 $6 (
19... exd5 $142 20. exd5 Bg4 21. Rc1 {Raetsky}) 20. d6 $40 {Gleizerov,E (2540)
-Ivanov,S (2470) Slupsk op 1992 1-0}) 7... Rb8 {[%cal Gb7b5]} 8. e4 Be7 (8...
b5 {Plus risqué} 9. d5 $1 $36 {[%csl Re8]}) 9. Qe2 {[%cal Ge2c4,Gf1d1] Comme
souvent dans ce genre de position, les Blancs ont des bonnes compensations
avec une avance de développement et le centre} Nxd4 {Jouant pour le gain et
les Blancs doivent maintenant justifier le sacrifice des deux P} (9... b5 {
L'alternative}) 10. Nxd4 Qxd4 11. Rd1 Qc5 12. Be3 (12. e5 Nd7 13. Bf4 O-O 14.
Ne4 (14. Rd2 Nb6 15. Rad1 $32 {Brunello,S (2467)-Rombaldoni,D (2484) ITA-ch sf
70th 2010 (4) 1/2}) 14... Qa5 15. Qh5 {Ponomariov,R (2737)-Ivanchuk,V (2748)
Amber-rapid 19th 2010 (6) 1/2}) 12... Qa5 (12... Qb4 13. e5 Nd7 14. Qg4 $44 {
[%csl Rg7];Adrian,C (2270)-Kohlweyer,B (2365) Lyngby op 1989 (5) 0-1}) 13. Bd2
{[%cal Gc3d5,Gd2a5]} (13. Qxc4 e5 {[%cal Gc8e6]} (13... b5 $11 {[%cal Gc8b7]})
14. Nd5 Nxd5 15. Rxd5 {[%csl Ra5]} Be6 16. Rxa5 Bxc4 17. Rxe5 $14 f6 18. Rxe7+
$5 Kxe7 19. Rc1 Bxa2 (19... b5 20. b3) 20. Rxc7+ $44 {[%csl Ge3];Riazantsev,A 
(2599)-Milov,V (2645) Venaco op rapid 2005 (6) 1/2}) 13... Qh5 $1 {[%csl Rh2]
[%cal Gf6g4] Force le Bg2 а occuper une position instable} 14. Bf3 Qc5 15. e5
$146 (15. Be3 Qa5 (15... Qb4 16. a3 Qb3 17. Bf4 $44) 16. Bd2 {Gleizerov,E 
(2540)-Ivanov,S (2470) Slupsk op 1992 1-0} (16. Qxc4 O-O 17. Ba7 b5) (16. Ba7
$5 Ra8 17. Be3 O-O (17... Nd7 18. Qxc4 Ne5 {[%csl Rf3]}) 18. Qxc4 b5 19. Qc6
Rb8 20. e5 Bb7 21. Qxb7 Rxb7 22. exf6 Bxf6 23. Bxb7 b4 (23... Bxc3 24. bxc3
Qxc3 25. Rac1) 24. Ne4 Bxb2 $13)) (15. Rac1 $1 {Un coup naturel pour terminer
le développement et les Noirs doivent jouer trés précis.} O-O (15... b5 $6 16.
Be3 Qb4 17. a3) (15... Nd7 16. Be3 Qb4 17. a3 Qb3 18. e5 $1 O-O (18... Nxe5 19.
Be4 {[%cal Ge4c2]} Bd7 (19... Nd3) (19... O-O 20. Bc2) 20. Bd4 Nd3 $1 {Les
Noirs sont contraint de rendre du matériel pour éviter la menace Bc2})) 16. Be3
Qb4 17. a3 Qb3 18. e5 Nd7 19. Be4 {[%cal Ge4c2]} c5 20. f4 (20. Bc2 Qb6 21. Ne4
$1 {[%cal Ge4d6,Ge4g5,Ge4f6,Ge4c5]}) 20... Rd8 (20... b5 21. Bc2) 21. Rd2 {
[%cal Gc1d1]} (21. Bc2)) 15... Nd7 {[%cal Gd7e5,Gd7b6]} (15... Nd5 $143 16.
Nxd5 exd5 17. Be3 Qa5 18. Rxd5 $36) 16. Ne4 $44 {Les Blancs doivent jouer de
manière active pour garder l'initiative car si les Noirs ont le temps de
roquer, les compensations seront insuffisantes.} Qb5 (16... Qxe5 17. Bc3 {
[%csl Rg7]} (17. Bf4)) 17. a4 (17. Bc3 {[%cal Gc3e5,Ga2a4]} Bb4 $5 (17... O-O
18. a4 Qb3 19. Nd2 Qb6 20. Nxc4) (17... Nxe5 18. Bg2 {[%cal Gf2f4,Gc3g7]} f6 (
18... O-O 19. a4) 19. a4 Qb6 20. Bd4 $44 (20. Nd2 {[%cal Gd2c4,Gc3e5]})) 18.
Bd4 Nxe5 19. a4 Qa5 20. Rac1 O-O $15 {[%cal Ge5f3]}) 17... Qxb2 $13 18. Rab1
Qc2 19. Bg2 {Illustrant le problème d'avoir joué Bf3 car la menace Ne5 serait
trés forte} (19. Rbc1 Qd3 20. Rxc4 Qxe2 21. Bxe2 c5 $17 (21... Nxe5 22. Rxc7))
19... O-O 20. Qh5 f5 (20... f6 21. Rbc1 Qxa4 22. Bf4 Ba3 23. Ra1 Nb6 {La suite
saisie а tort par la FFE} 24. Bc1 Qe8 25. Qxe8 Rxe8 26. Bxa3 fxe5) 21. Rbc1 $6
(21. exf6 Nxf6 22. Nxf6+ Bxf6 23. Rbc1 Qf5) 21... Qxa4 22. Bg5 $2 (22. Ra1 $8
Qc2 (22... Qb5 23. Rab1 g6 (23... Qd5 24. Ng5) 24. Qe2 fxe4 25. Rxb5 axb5 26.
Bh6 $13 {Si les Noirs arrivent а coordonner leurs pièces, ils doivent
probablement valoriser le matériel car les P passés de l'aile-dame sont trés
forts mais pour l'instant le GMI reste en retard de développement et la
position n'est pas claire.}) 23. Ng5 Bxg5 24. Qxg5 (24. Bxg5 Nxe5 {[%cal Ge5d3]
}) 24... h6 (24... Nxe5 25. Rac1 Qa4 26. Bc3 {[%csl Re5,Rg7]} Ng6 27. h4 $44 {
[%cal Gh4h5]} Qa3 28. h5 Qe7 29. Qe3 Nh8 30. h6 gxh6 31. Qa7 $1 {[%csl Rb8]}
Bd7 32. Qd4 {[%cal Gd4d7,Gd4h8]}) 25. Qe7 Rf7 26. Qd8+ {[%csl Rb8,Rc8]}) 22...
Ba3 23. Ra1 Nxe5 24. Bc1 Qe8 25. Qxe8 Rxe8 26. Bxa3 fxe4 27. Bxe4 Nd3 0-1

[Event "Candidates Tournament"]
[Site "Khanty-Mansiysk"]
[Date "2014.03.26"]
[Round "11"]
[White "Andreikin, Dmitry"]
[Black "Mamedyarov, Shakhriyar"]
[Result "1/2-1/2"]
[ECO "E04"]
[WhiteElo "2709"]
[BlackElo "2757"]
[Annotator "Marin,M"]
[PlyCount "91"]
[EventDate "2014.03.13"]
[EventType "tourn"]
[EventRounds "14"]
[EventCountry "RUS"]
[EventCategory "21"]
[SourceTitle "CBM 160"]
[Source "ChessBase"]
[SourceDate "2014.05.15"]
[SourceVersion "1"]
[SourceVersionDate "2014.05.15"]
[SourceQuality "1"]
[TimeControl "40/7200:20/3600:900+30"]
[WhiteClock "0:59:26"]
[BlackClock "0:56:56"]

1. Nf3 {[%emt 0:00:07]} d5 {[%emt 0:00:26]} 2. d4 {[%emt 0:00:09]} Nf6 {
[%emt 0:00:11]} 3. c4 {[%emt 0:00:08]} e6 {[%emt 0:00:06]} 4. g3 {[%emt 0:00:
11]} dxc4 {[%emt 0:00:20]} 5. Bg2 {[%emt 0:00:34]} c5 {[%emt 0:00:13]} 6. O-O {
[%emt 0:03:53]} Nc6 {[%emt 0:00:15] Decades ago, this was Black's main line in
the open Catalan. Fashion's wheel never stops turning and once again there
seems to be a lot of interest in this setup.} 7. dxc5 {[%emt 0:07:53] This
move and 7.Qa4 offer White a risk-free but only microscopically better
position.} ({The classic main line} 7. Ne5 {leads to more interesting play.})
7... Qxd1 {[%emt 0:00:14]} 8. Rxd1 {[%emt 0:00:05]} Bxc5 {[%emt 0:00:04]} 9.
Nbd2 {[%emt 0:00:04]} c3 {[%emt 0:00:06]} 10. bxc3 {[%emt 0:00:10]} O-O {
[%emt 0:00:14]} 11. Nb3 {[%emt 0:01:36] In the old days this was known to be
harmless.} ({The relatively unexplored} 11. Ne1 {yielded White a decisive win
in Gelfand,B (2758)-Ponomariov,R (2739) Khanty-Mansiysk 2009 CBM 134 [Marin,M]
(1-0, 52), but it was partly due to the effect of surprise.}) 11... Be7 {
[%emt 0:00:19]} 12. c4 {[%emt 0:05:21] But this is a modern trend already.} ({
Earlier, White looked for his chances after} 12. Nfd4 Nxd4 $5 {A modern
treatment of the variation.} ({There does not seem to be anything wrong with
the old} 12... Bd7 {, though. Markowski,T (2524)-Kaidanov,G (2596) Moscow 2002
CBM 088 [Ribli] (0-1, 48)}) 13. cxd4 Nd5 14. Bd2 f5 15. Na5 b6 16. Nc6 Bf6 17.
Rac1 Bb7 18. Rc2 Rfc8 19. Rdc1 Kf7 20. e3 Ke8 $11 {Sasikiran,K (2676)
-Wojtaszek,R (2734) New Delhi 2012 (1/2-1/2, 41)}) 12... Bd7 {[%emt 0:00:51]
So far, both opponents had played fast, but now White took a 20 minute period
of thought.} 13. Bb2 {[%emt 0:20:29] This is the move played in the vast
majority of games.} (13. Be3 $5 {[%cal Gb3c5]} Rac8 (13... Rad8 $5 14. Nc5 $140
Bc8) 14. Nc5 Bxc5 15. Bxc5 Rfd8 16. Rac1 b6 17. Ba3 Be8 18. Rxd8 Rxd8 19. c5 h6
20. cxb6 axb6 21. Bb2 Nd5 22. Ne1 Ra8 23. a3 b5 24. Nd3 $14 {Sargissian,G 
(2651)-Stern,R (2476) Dresden 2007 (1/2-1/2, 35)}) 13... Rfd8 {[%emt 0:00:29]}
(13... Rac8 $1 {is less accurate and allows} 14. c5 Nb8 (14... Rfd8 15. Nfd2 {
[%cal Gd2c4]}) 15. Ne5 Bc6 16. Nxc6 Nxc6 17. Rac1 $14 {Caruana,F (2712)-Bacrot,
E (2705) Rogaska Slatina 2011 (1-0, 51)}) 14. Nfd4 {[%emt 0:07:28]} (14. Ne5 {
is slightly more popular, but seems to lead to equality after} Rac8 15. c5 Nxe5
16. Bxe5 Bc6 {Tkachiev,V (2662)-Lu,S (2526) Jakarta 2012 (1/2-1/2, 36). There
is not much play left after White neutralises the pressure along the Catalan
diagonal.}) (14. c5 {does not work out so well as after 13...Rac8. Freed of
the task of defending the d7-bishop, the f6-knight can leap forward,
preventing the manoeuvre Nf3-d2-c4.} Ne4 $5 15. Rac1 Rac8 16. Ne1 f5 $5 17. Nd3
Be8 {Both sides are harmoniously developed and an interesting fight lies ahead.
}) 14... Rac8 {[%emt 0:00:57]} 15. Nb5 {[%emt 0:00:11][%csl Gd6] After Black
has consolidated the c6-square, White switches to putting pressure on the dark
squares.} (15. Rac1 Be8 16. c5 Nxd4 {This is best played after c4-c5, when the
hanging c5-pawn forces White into taking with the bishop:} 17. Bxd4 {, which
fails to keep the pressure on c6, allowing} Bc6 $11 {Giri,A (2734)-Wang,Y 
(2723) Beijing 2013 (1/2-1/2, 35)}) (15. c5 Nxd4 16. Bxd4 Bc6 $11 {Kramnik,V 
(2810)-Anand,V (2780) Zuerich 2013 (1/2-1/2, 41)}) 15... b6 {[%emt 0:00:46]
Preventing c4-c5.} (15... Be8 $6 {would allow White reveal the main idea of
the previous move.} 16. c5 $1 Rxd1+ 17. Rxd1 Nd8 18. Nd6 Bxd6 19. cxd6 $16 {
Caruana,F (2711)-Svidler,P (2739) Khanty-Mansiysk 2011 (0-1, 37)}) 16. Rac1 {
[%emt 0:03:44]} a5 {[%emt 0:03:24] Taking the pawn off the attacked square and
molesting the b3-knight slightly.} (16... Be8 {implies a pawn sacrifice.} 17.
Rxd8 Rxd8 18. Bxc6 Bxc6 19. Nxa7 Bb7 {Black's bishop pair and harmonious
development, combined with the relative weakness of White's queenside pawns
offer at least some compensation for the pawn. Still, it very much looks like
a one-way business.} 20. Bd4 Nd7 21. Nb5 Ra8 22. Rc2 Ra4 23. f3 f5 {Gelfand,B 
(2755)-Alekseev,E (2714) Jermuk 2009 (1/2-1/2, 39)}) 17. a4 {[%emt 0:09:04]}
Be8 {[%emt 0:00:32] There is no counter-indication to this regrouping retreat
now.} 18. Rxd8 {[%emt 0:07:30]} Rxd8 $146 {[%emt 0:07:06] The main idea behind
this new move seems to be controlling the d-file in order to inhibit the
immediate break c4-c5.} (18... Nxd8 19. c5 $1 bxc5 20. Nxa5 Nd5 21. Nc4 $14 {
Delchev,A (2622)-Llanes Hurtado,M (2469) Haguenau 2013 (1-0, 39)}) 19. h3 {
[%emt 0:00:31] White spent less than a minute on this slightly mysterious move,
possibly meaning that he had analysed Black's move at home. The idea must be
ensuring the king against back rank problems.} (19. c5 {is not too effective
now:} bxc5 20. Nxc5 Bxc5 21. Rxc5 Rd1+ 22. Bf1 Ne4 23. Rc1 Rxc1 24. Bxc1 Nc5
$11) ({White could prepare it with} 19. Nc7 {, but it still does not seem to
work.} Bd7 20. c5 bxc5 21. Nxc5 Nb4 22. Nxd7 Nxd7 {[%cal Gd7c5]} 23. Bd4 Rc8
24. Bb7 Rb8 25. Bf3 Rc8 $11) 19... Nb4 {[%emt 0:17:21] A proper way of
anticipating c4-c5. By now, both players had started taking their time. Black
thought for 17 minutes on the previous move and White replied after 20 minutes!
} (19... Rc8 $5 20. c5 $140 bxc5 21. Nxc5 Nb4) 20. c5 {[%emt 0:20:22]} ({
Black seems to hold his own on dark squares after} 20. Bd4 Nd7 $1 (20... Rb8
21. Be5 Rc8 22. Bb7 Rd8 23. c5 bxc5 24. Bc7 Rd7 25. Nxc5 $36) 21. Nc7 Rc8 22.
Nxe8 Rxe8 23. c5 bxc5 (23... Nxc5 24. Bxc5 bxc5 25. Nxa5 $14 {[%cal Ga5c4,
Ra4a5,Yg2a8]}) 24. Be3 (24. Bb2 Nb6) (24. Nxc5 Nxc5 25. Bxc5 Na2 $11) 24... Nd5
25. Bd2 N7b6 $11) 20... bxc5 {[%emt 0:02:02]} 21. Nxa5 {[%emt 0:06:35]} Nfd5 {
[%emt 0:09:42] As it turns out, Black was well prepared for the queenside
break. All his minor pieces are controlling important squares on that wing,
neutralising the dangers connected with the passed a-pawn.} 22. Nb7 {[%emt 0:
02:37]} (22. Nc4 Ra8 {[%csl Ga4,Gb5]}) 22... Rb8 {[%emt 0:01:37]} (22... Ra8 $5
{also looks fine.}) 23. Nxc5 {[%emt 0:00:40]} Bxb5 {[%emt 0:00:20]} 24. axb5 {
[%emt 0:00:07]} Rxb5 {[%emt 0:00:09]} 25. Ne4 $11 {[%emt 0:05:29] White has
the bishop pair, but with pawns on just one wing Black did not face major
trouble in holding a draw.} f6 {[%emt 0:02:17]} 26. Nc3 {[%emt 0:00:28]} Rc5 {
[%emt 0:01:48]} 27. Nxd5 {[%emt 0:00:21]} Rxc1+ {[%emt 0:00:05]} 28. Bxc1 {
[%emt 0:00:05]} Nxd5 {[%emt 0:00:03]} 29. g4 {[%emt 0:00:20]} g5 {[%emt 0:01:
03]} 30. Be4 {[%emt 0:02:44]} Nf4 {[%emt 0:00:26]} 31. Kf1 {[%emt 0:00:10]} Nd5
{[%emt 0:03:04]} 32. e3 {[%emt 0:01:13]} Kg7 {[%emt 0:01:24]} 33. Bc2 {[%emt 0:
00:36]} h6 {[%emt 0:00:56]} 34. Bb3 {[%emt 0:00:22]} Kg6 {[%emt 0:01:09]} 35.
Ke2 {[%emt 0:00:22]} h5 {[%emt 0:02:29]} 36. Kd3 {[%emt 0:02:25]} hxg4 {
[%emt 0:02:37]} 37. hxg4 {[%emt 0:00:03]} Nc7 {[%emt 0:02:54]} 38. Bb2 {
[%emt 0:00:41]} Bd6 {[%emt 0:00:33]} 39. Bc2 {[%emt 0:00:15]} Kf7 {[%emt 0:01:
13]} 40. Ke4 {[%emt 0:00:00]} Nd5 {[%emt 0:00:00]} 41. Bb3 {[%emt 0:00:58]} Nc7
{[%emt 0:00:57]} 42. f4 {[%emt 0:00:12]} gxf4 {[%emt 0:00:28]} 43. exf4 {
[%emt 0:00:06]} Kg6 {[%emt 0:01:28]} 44. Bxe6 {[%emt 0:00:35]} Bxf4 {[%emt 0:
02:20]} 45. Bf5+ {[%emt 0:00:10]} Kg5 {[%emt 0:00:03]} 46. Bxf6+ {[%emt 0:00:
28]} 1/2-1/2